bitfinex/quotes_ETHUSD_20220218
["timestamp","ask_amount","ask_price","bid_price","bid_amount"]
[1645186427409,0.7235163,2903.1,2902.2,0.05470718]
[1645186427854,2.3089117,2903.2,2902.2,0.05470718]
[1645186428056,1.4470817,2903.2,2902.5,0.0024992]
[1645186428261,0.8617185,2903.1,2902.5,0.0024992]
[1645186428457,3.5,2903.0,2902.5,0.0024992]
[1645186428659,0.8617185,2903.1,2902.5,0.0024992]
[1645186428660,5.5235685,2903.1,2902.5,0.0024992]
[1645186428858,2.5856754,2903.0,2902.5,0.0024992]
[1645186429061,6.0856754,2903.0,2902.2,0.05470718]
[1645186429262,2.5856754,2903.0,2902.6,0.00249916]
[1645186429564,2.3389678,2902.9,2902.6,0.00249916]
[1645186429768,3.5403678,2902.9,2902.6,0.00249916]
[1645186429962,4.6471778,2902.9,2902.6,0.00249916]
[1645186430268,4.4457778,2902.9,2902.2,0.05470718]
[1645186430461,4.4457778,2902.9,2902.6,0.00249916]
[1645186430864,1.1770801,2902.9,2902.6,0.00249916]
[1645186431062,1.0,2903.2,2902.6,0.00249916]
[1645186431263,0.3,2903.2,2902.6,0.00249916]
[1645186431501,0.3,2903.2,2902.5,0.05460177]
[1645186431704,0.3,2903.2,2902.6,0.00249916]
[1645186431902,0.86189,2903.0,2902.6,0.00249916]
[1645186432107,1.15431879,2902.9,2902.6,0.00249916]
[1645186432505,1.15431879,2902.9,2902.5,0.05460177]
[1645186432506,1.45431879,2902.9,2902.5,0.05460177]
[1645186432708,1.75431879,2902.9,2902.5,0.05460177]
[1645186433011,2.45431879,2902.9,2902.6,0.00249916]
[1645186433208,0.8618571,2902.8,2902.6,0.00249916]
[1645186433807,0.8618571,2902.8,2902.5,0.05460177]
[1645186434008,0.8618571,2902.8,2902.6,0.00249918]
[1645186434911,0.8618571,2902.8,2902.5,0.05460177]
[1645186435168,0.8618571,2902.8,2900.7,0.1312]
[1645186435169,5.0,2902.6,2901.4,0.1721]
[1645186435370,5.0,2902.2,2900.8,3.6721]
[1645186435571,0.416,2902.1,2900.7,1.2235]
[1645186435765,2.016,2902.1,2900.8,3.5]
[1645186436167,0.8622,2902.0,2900.8,3.5]
[1645186436364,1.92024855,2901.8,2900.9,1.00578452]
[1645186436566,0.416,2901.7,2901.3,0.00249975]
[1645186436764,0.716,2901.7,2901.3,0.00249975]
[1645186436964,1.716,2901.7,2901.3,0.00249975]
[1645186437368,1.716,2901.7,2900.9,1.00578452]
[1645186437569,0.8622674,2901.6,2901.4,0.00249973]
[1645186438366,1.7245174,2901.6,2901.4,0.00249973]
[1645186438568,1.7245,2901.6,2900.4,0.1723]
[1645186438769,0.8622466,2901.3,2900.4,0.1723]
[1645186439207,0.8622466,2901.3,2900.5,0.98280096]
[1645186439409,1.74063164,2901.3,2900.5,0.98280096]
[1645186440009,1.74063164,2901.3,2900.8,0.0025]
[1645186440311,0.8622466,2901.3,2900.8,0.0025]
[1645186441007,0.8622466,2901.3,2900.5,0.98280096]
[1645186441208,0.8622466,2901.3,2900.9,0.00249993]
[1645186441812,0.8620676,2901.8,2900.9,0.00249993]
[1645186442012,0.00496125,2901.7,2900.9,0.00249993]
[1645186442209,0.00496125,2901.7,2900.6,3.6723]
[1645186442656,1.03137303,2901.6,2901.2,0.0024998]
[1645186443261,1.89352713,2901.6,2901.2,0.0024998]
[1645186443469,0.00496125,2901.8,2900.7,3.51237922]
[1645186443662,0.00496125,2901.5,2901.3,0.00229868]
[1645186443860,0.00496125,2902.2,2901.3,0.00229868]
[1645186444365,0.8620457,2902.0,2901.3,0.00229868]
[1645186444565,0.8620457,2902.0,2901.0,2.64215419]
[1645186444566,1.16915586,2901.9,2901.0,2.64215419]
[1645186444763,0.00496125,2901.8,2901.0,0.86005419]
[1645186444964,0.00496125,2901.8,2901.6,0.00229852]
[1645186445167,1.16915586,2901.9,2901.6,0.00229852]
[1645186445766,1.16915586,2901.9,2900.9,6.5529]
[1645186445767,1.16915586,2901.9,2900.9,3.5]
[1645186445971,0.00496125,2901.8,2900.8,1.72393]
[1645186446170,0.86708825,2901.8,2901.6,0.00229852]
[1645186446406,0.862127,2901.8,2901.6,0.00229852]
[1645186446605,6.948726,2901.8,2901.6,0.00229852]
[1645186447006,3.75602586,2901.9,2900.7,4.9399]
[1645186447007,1.16915586,2901.9,2900.7,4.9399]
[1645186447207,0.00496125,2901.7,2900.7,4.9399]
[1645186447408,0.00496125,2901.8,2901.6,0.00229854]
[1645186447708,0.13819997,2902.3,2901.6,0.00229854]
[1645186447709,0.86212,2902.1,2901.6,0.00229854]
[1645186447913,2.72913875,2902.2,2901.6,0.00229854]
[1645186448108,1.72913875,2902.2,2901.6,0.00229854]
[1645186448309,1.72913875,2902.2,2900.8,3.5]
[1645186448613,1.10968913,2901.3,2900.9,0.1723]
[1645186448809,1.10968913,2901.3,2900.7,0.1723]
[1645186449011,1.11465038,2901.3,2900.7,0.1723]
[1645186450453,1.11465038,2901.3,2900.6,0.1723]
[1645186450658,0.8622765,2901.2,2900.6,0.1723]
[1645186450854,0.8622765,2901.2,2900.2,0.1723]
[1645186451056,0.00496125,2901.1,2900.9,0.00231706]
[1645186451261,1.10968913,2901.3,2900.9,0.00231706]
[1645186451458,1.11465038,2901.3,2900.9,0.00231706]
[1645186451656,1.10968913,2901.3,2900.9,0.00231706]
[1645186451855,1.10968913,2901.3,2900.4,0.99626558]
[1645186452056,0.00496125,2901.2,2900.4,0.99626558]
[1645186452258,0.00496125,2901.7,2901.0,0.00235911]
[1645186453157,0.00496125,2901.8,2900.8,0.1723]
[1645186453356,0.96419156,2901.5,2901.2,0.00235899]
[1645186454213,0.96419156,2901.5,2900.6,0.1723]
[1645186454415,0.00496125,2901.4,2900.6,0.1723]
[1645186454619,0.00496125,2901.4,2901.2,0.00235899]
[1645186454814,0.96419156,2901.5,2901.2,0.00235899]
[1645186455213,0.86219,2902.1,2901.2,0.00084097]
[1645186455414,0.8621892,2901.6,2900.6,0.1723]
[1645186455615,0.00496125,2901.5,2900.6,0.1723]
[1645186455817,0.00496125,2901.8,2900.9,0.01247223]
[1645186456016,0.00496125,2902.2,2901.0,0.1723]
[1645186456215,0.00496125,2902.2,2901.1,0.05498044]
[1645186456422,0.00496125,2902.2,2901.3,1.72373]
[1645186456615,1.14884411,2902.1,2901.4,3.98958]
[1645186456818,1.14884411,2902.1,2901.4,3.98957]
[1645186457015,1.14884411,2902.1,2901.4,0.86187]
[1645186457651,1.14884411,2902.1,2901.3,1.72373]
[1645186457856,0.00496125,2902.0,2901.5,0.8619]
[1645186458051,1.15380536,2902.1,2901.5,0.8619]
[1645186458651,0.00496125,2902.1,2901.5,0.8619]
[1645186458853,0.00496125,2902.2,2901.5,0.8619]
[1645186459064,0.00496125,2902.7,2901.6,0.86185]
[1645186459257,0.00496125,2902.7,2901.5,0.8619]
[1645186459457,0.00496125,2902.9,2901.8,0.86179]
[1645186459659,0.00496125,2902.9,2901.8,5.16756391]
[1645186459859,0.00496125,2902.9,2901.9,0.1721]
[1645186460061,0.00117469,2903.2,2901.9,1.3819]
[1645186460263,0.00496125,2903.3,2902.0,3.5]
[1645186460461,0.00496125,2903.5,2902.1,0.1721]
[1645186460660,0.00496125,2903.7,2902.2,2.58476]
[1645186460962,0.00117494,2903.2,2902.3,3.6721]
[1645186461160,0.00613619,2903.2,2902.3,3.6721]
[1645186461407,0.00613619,2903.2,2902.6,0.86152]
[1645186461615,0.00496125,2903.2,2902.7,3.6721]
[1645186461813,0.00117508,2903.2,2902.7,5.13358]
[1645186462009,0.00117508,2903.2,2902.7,4.83358]
[1645186462407,0.00117508,2903.2,2902.7,1.33358]
[1645186462608,1.7228538,2904.4,2902.7,1.33358]
[1645186462609,3.90097862,2905.0,2902.7,1.33358]
[1645186462809,1.72286,2904.8,2903.0,0.86143]
[1645186463109,0.00250317,2903.2,2903.1,5.728]
[1645186463308,0.00250317,2903.2,2903.1,0.1721]
[1645186463508,0.00250317,2903.2,2903.0,2.02284]
[1645186463709,0.00250317,2903.2,2903.1,1.0154606]
[1645186463911,0.90755493,2904.1,2903.1,1.0154606]
[1645186464121,0.00117332,2903.6,2903.2,3.5]
[1645186464314,0.00117332,2903.6,2903.2,0.86136]
[1645186464512,0.00117332,2903.6,2903.0,1.89475]
[1645186465153,0.90755493,2904.1,2903.1,3.5]
[1645186465355,0.0011734,2903.6,2902.9,3.6721]
[1645186465555,0.0011734,2903.6,2902.9,1.18979976]
[1645186465758,0.0011734,2903.6,2902.9,4.68979976]
[1645186466261,1.0,2904.6,2902.9,4.74672697]
[1645186466459,0.8613953,2904.4,2903.0,0.86142]
[1645186466668,0.00250294,2903.6,2903.1,3.5]
[1645186466964,0.00250294,2903.6,2903.1,3.9721]
[1645186467159,0.00250294,2903.6,2903.1,25.7961]
[1645186467360,0.01000926,2904.4,2903.5,0.86108]
[1645186467560,0.0144871,2905.0,2903.8,0.86115]
[1645186467762,0.01000942,2904.4,2904.0,0.86113]
[1645186467961,0.01000942,2904.4,2903.8,3.2953]
[1645186468165,0.01000942,2904.4,2903.5,2.0202]
[1645186468166,0.01000942,2904.4,2903.5,3.5]
[1645186468360,0.01000942,2904.4,2903.6,7.74356966]
[1645186468761,0.0144871,2905.0,2903.6,9.46592966]
[1645186469007,0.8757131,2905.0,2903.6,13.13802966]
[1645186469216,0.0144871,2905.0,2903.6,12.27677966]
[1645186469609,0.0144871,2905.0,2904.3,1.10675202]
[1645186470410,0.0144871,2905.0,2903.8,5.50146]
[1645186470611,0.0144871,2905.0,2903.9,0.86117]
[1645186470814,0.0144871,2905.0,2904.2,0.86106]
[1645186471016,0.0144871,2905.0,2904.3,3.5]
[1645186471215,0.0144871,2905.0,2904.2,20.19]
[1645186471412,0.0144871,2905.0,2904.3,3.6721]
[1645186471413,0.0025026,2904.6,2904.3,3.6721]
[1645186471617,0.0025026,2904.6,2904.2,20.19]
[1645186471821,0.0025026,2904.6,2904.4,1.72191]
[1645186472014,0.0025026,2904.6,2904.5,1.02610651]
[1645186472214,0.0025026,2904.6,2904.5,1.19820651]
[1645186472414,0.02449602,2905.0,2904.5,4.69820651]
[1645186472415,0.0144871,2905.0,2904.5,4.69820651]
[1645186472660,0.0582804,2905.5,2904.6,5.5881]
[1645186472858,0.0582804,2905.5,2904.8,0.86065]
[1645186473056,0.0582804,2905.5,2905.0,0.86065]
[1645186473258,0.0582804,2905.5,2905.1,0.99277783]
[1645186473454,0.0582804,2905.5,2905.2,0.1719]
[1645186473856,20.06797104,2905.7,2905.4,2.0]
[1645186474067,1.6493,2907.3,2905.4,2.0]
[1645186474068,2.7922,2907.8,2905.6,3.0]
[1645186474263,2.7922,2907.8,2905.7,0.1719]
[1645186474467,2.7922,2907.8,2905.7,2.1951]
[1645186474664,2.7922,2907.8,2905.7,5.6951]
[1645186474862,2.7922,2907.8,2905.8,4.5]
[1645186474863,0.8604289,2907.7,2905.8,4.5]
[1645186475063,0.8604289,2907.7,2905.7,13.45606971]
[1645186475064,0.13819997,2907.8,2905.9,5.39272]
[1645186475262,0.04774757,2907.7,2905.9,5.39272]
[1645186475464,2.97595837,2908.7,2906.0,6.416]
[1645186475669,0.00392,2908.7,2906.4,20.20271497]
[1645186475864,0.89019695,2908.3,2907.4,1.15628833]
[1645186476067,0.89019695,2908.3,2906.7,1.72052]
[1645186476267,0.00249162,2907.5,2906.6,2.7346]
[1645186476706,0.00249162,2907.5,2906.6,6.2346]
[1645186476907,0.00249162,2907.5,2906.6,2.7346]
[1645186477214,0.89155289,2907.6,2906.6,2.7346]
[1645186477408,0.00249175,2907.2,2906.5,1.7317]
[1645186477608,0.00249175,2907.2,2906.1,3.6719]
[1645186477609,0.00249175,2907.2,2906.4,0.86032]
[1645186478410,0.416,2908.3,2906.5,4.36032]
[1645186478411,2.2763,2908.3,2906.5,4.36032]
[1645186478611,0.00996598,2907.4,2907.2,0.88408364]
[1645186479619,0.00392,2908.6,2907.3,3.6719]
[1645186479825,0.00466311,2907.9,2907.4,2.59024]
[1645186480026,0.00466311,2907.9,2907.2,0.1719]
[1645186480261,0.00466311,2907.9,2907.0,1.7302]
[1645186480463,0.00466311,2907.9,2907.0,1.9021]
[1645186480664,0.00392,2908.6,2907.0,1.9021]
[1645186480863,0.00392,2908.6,2906.8,8.051]
[1645186480864,0.00784,2908.7,2906.8,11.551]
[1645186481062,0.00250531,2907.6,2906.8,9.4471]
[1645186481269,0.00250531,2907.6,2906.7,0.05064063]
[1645186481465,1.7212191,2907.5,2906.7,0.05064063]
[1645186481665,0.86310201,2907.6,2906.7,0.05064063]
[1645186482065,0.8605,2907.8,2906.7,0.05064063]
[1645186482066,1.0,2907.8,2906.7,0.05064063]
[1645186482263,0.00250547,2907.2,2906.7,0.05064063]
[1645186482671,0.86315547,2907.2,2906.7,0.05064063]
[1645186483263,0.86065,2907.2,2906.7,0.05064063]
[1645186483464,0.3,2907.5,2906.7,0.05064063]
[1645186483465,1.07470397,2907.0,2906.7,0.05064063]
[1645186484323,2.53545397,2907.0,2905.6,2.3465176]
[1645186484525,1.7217,2906.8,2905.6,2.3465176]
[1645186484716,1.03722923,2906.2,2905.6,2.3465176]
[1645186484920,1.03722923,2906.2,2904.7,3.0631]
[1645186484921,1.45322923,2906.2,2905.0,2.3465176]
[1645186485121,1.75322923,2906.2,2905.2,4.99608]
[1645186485316,1.45322923,2906.2,2905.1,3.5]
[1645186485518,1.45322923,2906.2,2905.0,2.3465176]
[1645186485720,1.45322923,2906.2,2905.0,3.3675724]
[1645186485721,0.8608964,2906.1,2905.0,3.3675724]
[1645186485919,0.8608964,2906.1,2905.1,3.5]
[1645186485920,0.00115771,2905.8,2905.1,3.5]
[1645186486122,0.00115771,2905.8,2905.5,4.99608]
[1645186486417,0.00115771,2905.8,2905.0,1.0210548]
[1645186486617,0.00115771,2905.8,2905.2,4.99608]
[1645186486818,0.416,2906.9,2905.2,4.99608]
[1645186487019,0.416,2906.9,2905.7,5.84565992]
[1645186487020,0.00463014,2906.0,2905.7,5.84565992]
[1645186487225,0.00463014,2906.0,2905.8,5.16798]
[1645186487427,2.4565,2908.1,2906.0,6.01386027]
[1645186487665,0.5,2908.1,2906.5,4.99608]
[1645186487860,0.5,2908.1,2906.6,5.16798]
[1645186488061,1.36037,2908.1,2906.7,3.5]
[1645186488264,0.41282356,2908.1,2906.7,3.9719]
[1645186488459,0.00784,2908.6,2906.7,3.9719]
[1645186488460,0.00784,2908.6,2908.0,4.99608]
[1645186488669,0.00784,2908.6,2907.8,0.2862]
[1645186488859,0.00784,2908.6,2908.5,4.99608]
[1645186489267,0.00784,2908.6,2908.3,0.2743]
[1645186489268,0.00784,2908.6,2908.3,0.1719]
[1645186489463,0.00784,2908.6,2908.5,4.99608]
[1645186489662,0.00784,2908.6,2908.4,0.86633368]
[1645186489864,0.00784,2908.6,2908.2,4.99608]
[1645186490370,0.00784,2908.6,2907.8,4.99608]
[1645186490761,0.01568,2909.9,2908.1,4.99608]
[1645186490962,0.91315583,2909.2,2908.2,0.93253154]
[1645186491405,0.86009,2909.0,2907.9,4.99608]
[1645186491609,1.16009,2909.0,2907.9,4.99608]
[1645186491808,1.16009,2909.0,2907.4,8.19288]
[1645186491809,0.3,2908.9,2907.4,8.19288]
[1645186492007,0.00251441,2908.8,2907.8,4.99608]
[1645186492211,0.00251441,2908.8,2907.2,0.1719]
[1645186492408,1.03859394,2908.0,2907.0,1.14872298]
[1645186492809,3.5,2908.6,2907.0,6.14480298]
[1645186493013,6.16186,2908.8,2907.5,4.99608]
[1645186493014,0.00493644,2907.9,2907.5,4.99608]
[1645186493209,6.22047,2908.8,2907.1,0.1719]
[1645186493210,0.00251497,2907.6,2907.1,0.1719]
[1645186493408,0.00251497,2907.6,2907.5,4.99608]
[1645186493409,1.497e-05,2907.6,2907.5,4.99608]
[1645186493613,1.497e-05,2907.6,2907.5,5.16798]
[1645186493808,1.497e-05,2907.6,2907.5,6.15628919]
[1645186494015,0.01568,2908.6,2907.5,6.15628919]
[1645186494016,0.01568,2908.6,2907.5,6.45628919]
[1645186494213,0.01568,2908.6,2908.1,4.99608]
[1645186495013,0.01568,2908.6,2908.5,4.99608]
[1645186495462,0.01568,2908.6,2908.2,1.03607967]
[1645186496265,8e-05,2908.6,2908.5,4.99608]
[1645186497565,0.00493644,2909.7,2909.1,0.02029395]
[1645186497765,0.00304024,2909.8,2909.3,0.93585732]
[1645186498169,0.00304024,2909.8,2909.1,5.01637395]
[1645186498367,0.00493644,2909.9,2909.2,3.53628841]
[1645186498368,0.00608048,2909.9,2909.2,3.53628841]
[1645186498573,0.00608048,2909.9,2909.7,4.99608]
[1645186499024,0.00608048,2909.9,2909.6,0.2555]
[1645186499425,0.00608048,2909.9,2909.8,4.99608]
[1645186499622,0.00608048,2909.9,2909.8,8.49608]
[1645186499824,0.00608048,2909.9,2909.8,4.99608]
[1645186500021,0.00608048,2909.9,2909.8,7.34123096]
[1645186500222,0.00608048,2909.9,2909.8,2.34515096]
[1645186501521,0.00608048,2909.9,2909.3,2.34515096]
[1645186502672,0.00608048,2909.9,2909.2,0.03628841]
[1645186502673,0.00608048,2909.9,2909.2,2.34515096]
[1645186503072,0.00253032,2909.7,2909.2,2.34515096]
[1645186503669,1.16718767,2909.7,2909.2,2.34515096]
[1645186503872,0.00608048,2909.8,2909.1,0.02029395]
[1645186503873,0.86596438,2909.8,2909.1,0.02029395]
[1645186504071,0.00608048,2909.8,2909.1,0.02029395]
[1645186504274,0.0025304,2909.6,2909.1,0.02029395]
[1645186504877,0.99159999,2909.5,2909.1,0.02029395]
[1645186505073,0.416,2909.4,2909.1,0.02029395]
[1645186505274,6.5,2909.3,2908.2,2.34515096]
[1645186505476,0.01215895,2908.9,2908.7,3.111e-05]
[1645186505675,0.416,2908.8,2908.7,3.111e-05]
[1645186506280,0.416,2908.8,2908.2,2.34515096]
[1645186506519,0.416,2908.8,2907.4,0.1718]
[1645186506520,0.416,2908.8,2907.9,4.99608]
[1645186506720,3.51934008,2909.9,2908.2,4.99608]
[1645186506721,0.216,2909.4,2908.2,4.99608]
[1645186506918,2.58071,2909.6,2907.9,4.99608]
[1645186506919,1.27599,2909.6,2907.9,4.99608]
[1645186507117,1.27599,2909.6,2908.0,3.5]
[1645186507719,0.8599876,2909.4,2908.0,5.84515096]
[1645186507919,1.7200612,2909.5,2908.3,1.075113]
[1645186507920,0.86009,2909.2,2908.3,1.075113]
[1645186508319,1.16009,2909.2,2908.3,1.075113]
[1645186508520,0.3,2909.2,2908.3,1.075113]
[1645186508723,1.6,2909.4,2908.3,1.075113]
[1645186508919,0.6,2909.4,2908.4,4.99608]
[1645186509128,1.6,2909.4,2908.9,4.24667472]
[1645186509324,0.01607894,2909.8,2908.9,4.24667472]
[1645186509526,0.01607894,2909.8,2909.0,3.5]
[1645186509723,0.01607894,2909.8,2908.9,4.24667472]
[1645186510159,0.00253023,2909.5,2908.9,4.24667472]
[1645186510958,0.86255023,2909.5,2908.9,4.24667472]
[1645186511163,0.416,2909.4,2908.9,4.24667472]
[1645186511362,0.00114651,2909.3,2908.9,4.24667472]
[1645186511560,0.00114651,2909.3,2908.9,2.29217472]
[1645186511561,1.00084984,2909.2,2908.9,2.29217472]
[1645186511762,0.92292589,2908.6,2908.2,2.37237839]
[1645186511962,0.416,2909.0,2908.2,2.37237839]
[1645186512461,0.8601084,2908.9,2908.2,2.37237839]
[1645186512661,0.416,2909.0,2908.2,0.02729575]
[1645186513264,0.87380837,2908.6,2908.2,0.02729575]
[1645186513466,2.15001597,2908.6,2908.2,0.02729575]
[1645186513663,1.5762076,2908.6,2908.2,0.02729575]
[1645186513916,0.716,2908.6,2908.2,0.02729575]
[1645186514121,0.416,2908.6,2908.2,0.02729575]
[1645186514317,0.716,2908.6,2908.2,0.02729575]
[1645186514818,1.5761668,2908.6,2908.2,0.02729575]
[1645186515018,2.03259872,2908.6,2908.3,0.00252821]
[1645186515417,0.3,2908.5,2908.3,0.00252821]
[1645186515619,0.716,2908.5,2908.3,0.00252821]
[1645186515823,3.5,2908.4,2908.1,0.02682228]
[1645186516021,3.5,2908.4,2907.3,2.34560544]
[1645186516022,0.416,2908.3,2907.3,2.34560544]
[1645186516323,1.9564,2908.3,2907.3,2.34560544]
[1645186516526,0.86065,2908.0,2906.4,0.1719]
[1645186516717,1.7211,2907.8,2906.3,5.16798]
[1645186516919,2.4371,2907.8,2906.3,5.16798]
[1645186517118,0.8605035,2907.5,2906.3,5.16798]
[1645186517318,0.8605035,2907.5,2906.3,0.1719]
[1645186517522,0.86071,2907.2,2906.2,2.51750544]
[1645186517770,0.3,2907.1,2906.1,0.1719]
[1645186517969,0.3,2907.1,2906.0,0.01386027]
[1645186517970,0.416,2907.1,2906.0,0.01386027]
[1645186518174,2.89475346,2907.8,2906.0,0.01386027]
[1645186518175,2.58213,2907.8,2906.1,0.1719]
[1645186518373,0.416,2907.8,2906.1,0.1719]
[1645186518573,0.416,2907.8,2907.1,4.99608]
[1645186518770,0.34633,2908.7,2906.4,5.9689]
[1645186518771,0.0411,2908.7,2906.4,5.9689]
[1645186518979,0.416,2907.8,2906.4,3.6719]
[1645186519281,0.416,2907.8,2906.1,0.1719]
[1645186519475,0.716,2907.8,2906.0,5.85946571]
[1645186519675,0.86072,2906.9,2906.0,5.85946571]
[1645186519873,0.85728734,2906.9,2906.0,2.35946571]
[1645186520273,0.85728734,2906.9,2906.4,1.14251931]
[1645186520882,6.88565,2907.9,2906.4,1.1696382]
[1645186520883,0.416,2907.4,2906.4,1.1696382]
[1645186521077,0.416,2907.8,2906.8,4.99608]
[1645186521420,6.49797,2908.2,2907.1,4.99608]
[1645186521623,6.49797,2908.2,2906.5,6.37658]
[1645186521624,1.72093,2908.0,2906.5,6.37658]
[1645186522018,1.7209,2907.9,2906.5,6.37658]
[1645186522216,0.86047,2907.9,2906.5,6.37658]
[1645186522417,0.86047,2907.9,2906.5,5.16798]
[1645186523018,1.17727872,2907.6,2906.6,1.0308522]
[1645186523218,0.86055,2907.7,2906.6,1.0308522]
[1645186523219,1.7210907,2907.5,2906.6,1.0308522]
[1645186523419,2.5816314,2907.7,2907.1,0.00252602]
[1645186523619,0.716,2907.8,2907.1,0.00252602]
[1645186524021,0.416,2907.8,2907.1,0.00252602]
[1645186524226,0.416,2908.2,2907.7,1.05461688]
[1645186524430,4.63017429,2909.0,2907.3,4.99608]
[1645186524431,3.5,2908.9,2907.3,4.99608]
[1645186524625,0.416,2908.8,2907.3,4.99608]
[1645186524929,3.5,2908.7,2907.3,0.0025259]
[1645186525170,0.86033,2908.5,2907.3,0.0025259]
[1645186525369,0.86029,2908.3,2907.3,0.0025259]
[1645186525570,2.25163596,2908.3,2907.3,1.12851986]
[1645186525769,0.86029,2908.3,2907.3,1.12851986]
[1645186525969,0.86029,2908.3,2907.8,0.00252569]
[1645186526173,0.86029,2908.3,2908.0,4.99608]
[1645186526374,0.00252457,2909.0,2908.0,4.99608]
[1645186526576,0.86012,2908.9,2907.9,0.5706]
[1645186526882,4.36032,2908.8,2907.9,0.2788]
[1645186527183,0.8602,2908.8,2908.4,0.0025254]
[1645186527576,0.8601814,2908.7,2908.4,0.0025254]
[1645186527977,0.8601814,2908.7,2907.5,4.99608]
[1645186528177,0.8601814,2908.7,2908.4,0.00133037]
[1645186528376,1.7203876,2909.0,2908.4,0.00133037]
[1645186528775,0.8601904,2908.7,2908.4,0.00133037]
[1645186529016,0.86022,2908.6,2908.4,0.00133037]
[1645186529216,0.8601904,2908.7,2907.6,0.92645204]
[1645186529422,0.00491176,2908.5,2908.4,0.00133037]
[1645186529619,0.00491176,2908.6,2908.4,0.00133037]
[1645186529925,3.3345565,2908.7,2908.4,0.00133037]
[1645186530319,0.86024,2908.5,2907.5,3.5]
[1645186530519,0.86024,2908.5,2907.4,1.1898]
[1645186530720,0.86521306,2908.4,2907.0,1.03219]
[1645186530921,0.86521306,2908.4,2906.9,7.7109]
[1645186530922,0.42091176,2908.4,2906.9,7.7109]
[1645186531124,0.42091176,2908.4,2906.9,10.33588]
[1645186531321,1.11591022,2908.2,2906.9,5.3398]
[1645186531525,0.42091176,2908.1,2907.1,4.99608]
[1645186532023,0.42091176,2908.1,2907.0,0.1719]
[1645186532218,0.42091176,2908.1,2907.0,4.99608]
[1645186532424,0.42091176,2908.1,2907.1,3.6719]
[1645186532662,0.42091176,2908.1,2907.0,4.99608]
[1645186532863,0.42091176,2908.1,2907.3,1.10375487]
[1645186533267,0.72091176,2908.1,2907.3,1.10375487]
[1645186533466,0.72091176,2908.1,2906.9,10.33588]
[1645186533669,0.72091176,2908.1,2906.9,5.3398]
[1645186534068,0.86044,2908.0,2907.0,4.99608]
[1645186534368,0.72091176,2908.1,2907.0,4.99608]
[1645186534567,0.72091176,2908.1,2907.1,1.15828283]
[1645186535569,0.72091176,2908.1,2907.5,0.00251019]
[1645186535770,0.86038,2908.0,2907.5,0.00251019]
[1645186535973,0.87426068,2908.0,2907.5,0.00251019]
[1645186536516,0.87426068,2908.0,2907.1,1.15828283]
[1645186536716,0.87426068,2908.0,2907.6,0.00137795]
[1645186536916,1.73471168,2908.0,2907.6,0.00137795]
[1645186537117,0.86047,2907.9,2907.6,0.00137795]
[1645186537623,0.86047,2907.9,2906.6,10.46698]
[1645186537817,0.86047,2907.9,2907.6,0.00137795]
[1645186537818,0.99705922,2907.7,2907.6,0.00137795]
[1645186538017,1.16047,2907.9,2907.6,0.00137795]
[1645186538218,1.0,2907.8,2907.6,0.00137795]
[1645186538417,2.16047,2907.9,2907.6,0.00137795]
[1645186538620,0.86047,2907.9,2907.6,0.00137795]
[1645186538820,0.6,2907.9,2906.9,4.99608]
[1645186539019,1.1604617,2907.9,2907.2,4.99608]
[1645186539221,1.19879798,2908.0,2906.7,1.350792]
[1645186539222,1.19879798,2908.0,2907.6,0.00137795]
[1645186539422,0.3,2907.9,2907.6,0.00137795]
[1645186539618,5.69879798,2908.0,2907.6,0.00137795]
[1645186539819,0.86049,2907.8,2907.6,0.00137795]
[1645186540019,0.86049,2907.8,2906.7,6.174972]
[1645186540269,0.3,2907.7,2906.7,6.174972]
[1645186540666,1.0,2907.9,2906.7,6.174972]
[1645186540869,3.58146,2907.9,2907.7,0.02408486]
[1645186541068,3.99746,2907.9,2907.7,0.02408486]
[1645186541273,2.27645,2907.9,2907.7,0.02408486]
[1645186541470,1.416,2907.9,2907.7,0.02659754]
[1645186541666,0.416,2907.9,2907.7,0.02659754]
[1645186541867,2.13691,2907.9,2907.7,0.02659754]
[1645186542268,3.13691,2907.9,2907.7,0.02659754]
[1645186542466,3.13691,2907.9,2907.7,0.02408486]
[1645186542668,3.13691,2907.9,2907.7,0.02659754]
[1645186542872,3.9973685,2907.9,2907.7,0.02659754]
[1645186543270,2.9973685,2907.9,2907.7,0.02550983]
[1645186543469,1.0,2907.8,2907.7,0.02550983]
[1645186543672,2.9973685,2907.9,2907.7,0.02299715]
[1645186543919,1.0,2907.8,2907.7,0.02550983]
[1645186544125,0.8849173,2908.0,2907.7,0.02550983]
[1645186544926,0.8849173,2908.0,2907.7,0.02299715]
[1645186545123,1.7454773,2908.0,2907.7,0.02550981]
[1645186545536,0.416,2907.9,2907.7,0.02550981]
[1645186545926,0.416,2907.9,2907.7,0.02704198]
[1645186546127,0.416,2908.3,2907.7,0.02452932]
[1645186546327,1.2763611,2908.3,2907.7,0.027042]
[1645186547229,1.2763611,2908.3,2908.1,4.99608]
[1645186547230,0.86034,2908.2,2908.1,4.99608]
[1645186547433,0.00491176,2908.6,2908.1,4.99608]
[1645186547434,0.42091176,2908.7,2908.1,4.99608]
[1645186547667,0.34379,2909.2,2907.9,0.00251258]
[1645186547668,0.00491176,2908.9,2907.9,0.00251258]
[1645186547863,0.00491176,2908.6,2907.9,0.00251258]
[1645186548169,2.58310156,2909.0,2907.9,0.00251258]
[1645186548170,0.00491176,2908.9,2907.9,0.00251258]
[1645186548362,0.00491176,2908.9,2907.8,0.95512808]
[1645186548363,0.90777057,2908.8,2907.8,0.95512808]
[1645186548564,0.90777057,2908.8,2907.7,5.02060932]
[1645186548565,0.00491176,2908.7,2907.7,5.02060932]
[1645186548764,0.00491176,2908.7,2908.2,4.99608]
[1645186548973,0.00491176,2908.7,2908.6,4.99608]
[1645186549171,0.00251165,2909.0,2908.6,5.87978]
[1645186549172,0.00491176,2908.8,2908.6,5.87978]
[1645186549373,0.00251165,2909.0,2908.6,5.87978]
[1645186549374,0.00251165,2909.0,2908.6,6.05168]
[1645186549668,0.00491176,2909.4,2908.9,4.99608]
[1645186549874,0.4128,2909.7,2909.2,4.99608]
[1645186550071,0.01004611,2909.4,2908.9,1.11132841]
[1645186550266,0.01004611,2909.4,2909.2,4.99608]
[1645186550466,0.92650743,2910.3,2909.2,4.99608]
[1645186550679,0.01216096,2910.2,2909.2,4.99608]